{"text_format":"1","workbook":"xlsx","n_sheets":4,"sheets":["INFO","Explanation","Overview","Statistics"],"not_rendered":{"charts":0,"images":1,"macros":1,"external_links":0,"defined_names":6,"comments":0,"pivot_tables":0},"unopened":[],"bounds":{"document_bytes":16777216,"sheet_cells":100000,"rows_first":2000,"rows_last":500,"rows_between":2000,"halvings":0,"cell_chars":16384,"cell_head_chars":4096},"cells_cut":0,"cells_raw":0,"read":"whole","date_system":"1900"}

{"sheet":"INFO","index":0,"n_rows":39,"n_cols":3,"rows_kept":39,"cut":false,"hidden":false,"merged":[]}
[null,"Categorized overview of all EPB standards"]
[null,"DRAFT"]
[null,"June 26, 2024"]
[]
[]
[]
[null,"This special spreadsheet:"]
[]
[null,"Main related standard(s):","Categorized overview EPB standards, see Explanation"]
[]
[null,"Spreadsheet created by:","Dick van Dijk (EPB Center expert)"]
[null,null,"with input from other EPB Center experts"]
[]
[null,"Contact:","https://epb.center/contact/"]
[]
[null,"Date:","2024-06-26"]
[null,null,"Replaces file: --    Date: --"]
[]
[null,"Detailed info:","See sheet \"Explanation\""]
[]
[null,"Spreadsheet","Categorized overview of all EPB standards,"]
[null,null,"NOTE: For the series of spreadsheets to support the implementation and use of the set of EPB standards, see below"]
[]
[null,"Acknowledgement:","This EPB spreadsheet has been produced and reviewed with the help of several experts active in the EPB Center "]
[]
[]
[null,"Disclaimer:","Although this spreadsheet has been developed with care, neither the authors or contributors warrant that the content of this spreadsheet is free of errors. The EPB Center expressly disclaims any liability or responsibility arising from use of this spreadsheet, or any consequences thereof. Any responsibility arising from the use of this spreadsheet lies with the user."]
[]
[]
[null,"Terms of use:","The user is not allowed to redistribute a modified version of this spreadsheet."]
[null,"Creative Commons License:","CC BY-NC-ND 4.0"]
[null,null,"The author(s) would appreciate your feed back on the spreadsheet (see Contact above)"]
[]
[null,"The series of spreadsheets to support the implementation and use of the set of EPB standards:"]
[null,"See:","https://epb.center/support/documents/?title=&group=3"]
[null,"Main purpose:","The main purpose of the series of EPB spreadsheets is to support the implementation and use of the standards."]
[null,null,"They aim to demonstrate the validity of the calculation procedures and the required input and provided output data defined in the standard."]
[null,null,"They support the expert user of the standards, in particular those who want to review the content of the standard and those who want to translate the standard into software, to understand the correct interpretation of the formulae and calculation steps in the standard, or e.g. to explore the sensitivity for variations in input values."]
[null,null,"Some spreadsheets have been further developed to include more advanced features or to become more user friendly (see sheet \"Explanation\")"]

{"sheet":"Explanation","index":1,"n_rows":66,"n_cols":5,"rows_kept":66,"cut":false,"hidden":false,"merged":[[56,10,60,10]]}
[]
[null,"Responsible in ISO and/or CEN:",null,"Various committees, see overview"]
[]
[]
[null,"Convention:","Font colors and/or cell shading on calculation sheet(s):"]
[null,null,"red font","input"]
[null,null,"blue font","calculated"]
[null,null,"green font","fixed"]
[null,null,"black font","set up, various"]
[]
[null,"Run:","See sheet \"Overview\""]
[]
[null,"Status:","Published; subject to review"]
[]
[null,"Main features:","Overview of all EPB standards"]
[null,null,"with each standard categorized according to type, module, etc."]
[]
[]
[null,"Purpose:","For general information and for preparation of detailed plan for upgrading (see Roadmap)"]
[]
[]
[]
[]
[]
[null,"Related documents:","[1] Dick van Dijk and Jaap Hogeling, Overview of all ISO and CEN EPB standards, February 2024"]
[null,null,"[2] Dick van Dijk, U-CERT, D3.1 Development of a converged set of national data sheets (towards a U-CERT calculation methodology using the set of "]
[null,null,"     EPB standards), Updated version: August 27, 2021"]
[null,null,"Report on U-CERT task 3.1, available at U-CERT website"]
[null,null,"D3.1 Development of a converged set of national data sheets (towards a U-CERT calculation methodology using the set of EPB standards) 1.8 MB"]
[null,null,"[3] Dick van Dijk, U-CERT, D3.1 Annex 2, U-CERT converged set of national datasheets for the main EPB standards, August 27, 2021"]
[null,null,"D3.1 Annex 2 U-CERT converged set of national datasheets for the main EPB standards 2.1 MB"]
[null,null,"[4] Dick van Dijk, EPB Center / U-CERT : Categorized overview of all Annex A/B choices in 10 selected EPB standards,"]
[null,null,"EPB Center & U-CERT - Categorized overview of all Annex A/B choices in 10 selected EPB standards 95.7 KB"]
[null,null,"ISO and CEN Roadmap "]
[]
[]
[]
[null,"Disclaimer:","In addition to the general disclaimer at the INFO sheet:"]
[null,null,"The subdivision of the EPB standards "]
[null,null,"into categories/types is to some extent arbitrary"]
[null,null,"The subdivision is purely based on the judgement of experts on the selected EPB standards"]
[]
[]
[]
[null,"Main limitations:","- See disclaimer"]
[]
[]
[null,"Protection:","The sheets are protected against accidental changes of the data"]
[]
[null,"Why a macro?","A small macro is used to  facilitate sorting the standards and the categories"]
[]
[null,"Links:","https://epb.center/supprt/documents"]
[]
[]
[]
[null,"Overview of the meaning of each sheet in this file"]
[null,"Sheet",null,"Description"]
[null,"INFO",null,"Common info for all EPB spreadsheets, including DISCLAIMER","Red tab colour (do not touch) for INFO, Explanation and History"]
[null,"Explanation",null,"Explanation on this spreadsheet"]
[null,"Overview",null,"Tabulated overview of all EPB standards with indication of the type"]
[null,"Statistics",null,"Statistical information"]
[]
[null,"History of this spreadsheet"]
[null,"Date","Developer","Description"]
[null,"2024-06-24","Dick van Dijk","First version for internal distribution; see Disclaimer on sheet \"INFO\"!"]
[null,null,null,"to do: add statistics"]

{"sheet":"Overview","index":2,"n_rows":69,"n_cols":22,"rows_kept":69,"cut":false,"hidden":false,"merged":[]}
[null,null,null,"EPB Center","         See sheet Explanation (including disclaimer)"]
[null,{"$f":"+MAX(B7:B757)+4","v":65},null,null,"BE CAREFUL: UNPROTECTED!!",null,null,"M1, EPB - Overarching EPB Assessment Procedures","M2, EPB - Building and Building Elements","M3, EPB - Heating Systems and water based cooling systems in buildings & M8 DHW systems","M4, EPB - Cooling Systems","M5, EPB - Ventilation and Ventilation Systems","M9, EPB - Lighting and Lighting Systems","M10, EPB - Building Automation and Control","Interacting EP calculation procedures","Supporting calculation procedures","EP preprocessing (indoor, outdoor env.) or postprocessing (indic., requirmts, ratings)","Other (System or component design)","Other (inspection, meas.EP, economic calc.)","Other: reference calc., background info","Notes"]
[null,null,null,null,"Only cels with red font & yellow background are for editing",null,null,"A","B","C","D","E","F","G",null,"H","I","J","K","L"]
[null,"OrderAll","No excl.duplic.","EPB standard","Title","Pages","Number (incl. 'duplicates'):",{"$f":"+H67","v":10},{"$f":"+I67","v":16},16,4,4,1,10,24,11,6,11,6,3]
[null,0,null,null,null,null,"Order of sorting:\n( 0 = ignore;  higher = more dominant)",0,0,0,0,0,0,0,5,3,4,0,0,0]
[null,1,1,"EN ISO 52000-1:2017","Energy Performance of Buildings – Overarching EPB assessment – Part 1: General framework and procedures",128,"M1",1,null,null,null,null,null,null,1]
[null,11,7,"EN ISO 52016-1:2017","Energy performance of buildings – Energy needs for heating and cooling, internal temperatures and sensible and latent heat loads - Part 1: Calculation Procedures",204,"M2",null,1,null,null,null,null,null,1]
[null,12,8,"EN ISO 52016-3:2023","Energy performance of buildings – Energy needs for heating and cooling, internal temperatures and sensible and latent heat loads - Part 3: Calculation procedures regarding adaptive building envelope elements",55,"M2",null,1,null,null,null,null,null,1]
[null,13,9,"EN ISO 52016-5:20??","Energy performance of buildings – Energy needs for heating and cooling, internal temperatures and sensible and latent heat loads - Part 5: Specific criteria and validation procedures (in preparation)","??","M2",null,1,null,null,null,null,null,1]
[null,27,23,"EN 15316-1:2017","Energy performance of buildings – Method for calculation of system energy requirements and system efficiencies – Part 1: General and Energy performance expression, Module M3–1, M3–4, M3–9, M8–1, M8–4",86,"M3, M8",null,null,1,null,null,null,null,1]
[null,29,25,"EN 15316-2:2017","Energy performance of buildings – Method for calculation of system energy requirements and system efficiencies – Part 2: Space emission systems (heating and cooling), Module M3–5, M4–5",58,"M3, M4",null,null,1,null,null,null,null,1]
[null,30,25,"ISO 52031:2020","Energy performance of buildings – Method for calculation of system energy requirements and system efficiencies – -- Space emission systems (heating and cooling)",47,"M3, M4",null,null,1,null,null,null,null,1]
[null,31,26,"EN 15316-3:2017","Energy performance of buildings – Method for calculation of system energy requirements and system efficiencies – Part 3: Space distribution systems (DHW, heating and cooling), Module M3–6, M4–6, M8–6",30,"M3, M4, M8",null,null,1,null,null,null,null,1]
[null,32,26,"EN ISO 52032-1:2022","Energy performance of buildings -- Space distribution systems (DHW, heating and cooling), Module M3-6, M4-6, M8-6",34,"M3, M4, M8",null,null,1,null,null,null,null,1]
[null,33,27,"EN 15316-5:2017","Energy performance of buildings – Method for calculation of system energy requirements and system efficiencies – Part 5: Space heating and DHW storage systems (not cooling), Module M3–7, M8–7",56,"M3, M8",null,null,1,null,null,null,null,1]
[null,34,28,"EN 15316-4-1:2017","Energy performance of buildings – Method for calculation of system energy requirements and system efficiencies – Part 4–1: Space heating and DHW generation systems, combustion systems (boilers, biomass), Module M3–8-1 and M 8–8-1",58,"M3, M8",null,null,1,null,null,null,null,1]
[null,35,29,"EN 15316-4-2:2017","Energy performance of buildings – Method for calculation of system energy requirements and system efficiencies – Part 4–2: Space heating generation systems, heat pump systems, Module M3–8-2, M8–8-2",90,"M3, M8",null,null,1,null,null,null,null,1]
[null,36,30,"EN 15316-4-3:2017","Energy performance of buildings – Method for calculation of system energy requirements and system efficiencies – Part 4–3: Heat generation systems, thermal solar and photovoltaic systems, Module M3–8-3, M8–8-3, M11–8-3",106,"M3",null,null,1,null,null,null,null,1]
[null,37,31,"EN 15316-4-4:2017","Energy performance of buildings – Method for calculation of system energy requirements and system efficiencies – Part 4–4: Heat generation systems, building-integrated cogeneration systems, Module M8–3-4, M8–8-4, M8–11-4",30,"M3, M8",null,null,1,null,null,null,null,1]
[null,38,32,"EN 15316-4-5:2017","Energy performance of buildings – Method for calculation of system energy requirements and system efficiencies – Part 4–5: District heating and cooling, Module M3–8-5, M4–8-5, M8–8-5, M11–8-5",33,"M3, M8, M11",null,null,1,null,null,null,null,1]
[null,39,33,"EN 15316-4-8:2017","Energy performance of buildings – Method for calculation of system energy requirements and system efficiencies – Part 4–8: Space heating generation systems, air heating and overhead radiant heating systems, including stoves (local), Module M3–8-8",64,"M3",null,null,1,null,null,null,null,1]
[null,42,36,"EN 16798-9:2017","Energy performance of buildings –Ventilation for buildings – Part 9: Calculation methods for energy requirements of cooling systems (Modules M4-1, M4-4, M4-9) – General",46,"M4",null,null,null,1,null,null,null,1]
[null,43,37,"EN 16798-15:2017","Energy performance of buildings – Ventilation for buildings – Part 15: Calculation of cooling systems (Module M4–7) – Storage",39,"M4",null,null,null,1,null,null,null,1]
[null,44,38,"EN 16798-13:2017","Energy performance of buildings – Ventilation for buildings – Part 13: Calculation of cooling systems (Module M4–8) – Generation",70,"M4",null,null,null,1,null,null,null,1]
[null,47,41,"EN 16798-7:2017","Energy performance of buildings – Ventilation for buildings – Part 7: Calculation methods for the determination of air flow rates in buildings including infiltration (Module M5–5)",62,"M5",null,null,null,null,1,null,null,1]
[null,48,42,"EN 16798-5-1:2017","Energy performance of buildings – Ventilation for buildings – Part 5–1: Calculation methods for energy requirements of ventilation and air conditioning systems (Modules M5–6, M5–8, M6–5, M6–8, M7–5, M7–8) – Method 1: Distribution and generation",79,"M5, M6, M7",null,null,null,null,1,null,null,1]
[null,49,43,"EN 16798-5-2:2017","Energy performance of buildings – Ventilation for buildings – Part 5–2: Calculation methods for energy requirements of ventilation systems (Modules M5-6, M5-8, M6-5, M6-8, M7-5, M7-8) - Method 2: Distribution and generation",60,"M5, M6, M7",null,null,null,null,1,null,null,1]
[null,51,45,"EN 15193-1:2017+A1:2021","Energy performance of buildings – Energy requirements for lighting – Part 1: Specifications, Module M9",110,"M9",null,null,null,null,null,1,null,1]
[null,61,54,"EN 15316–4-10:2017","Energy performance of buildings - Method for calculation of system energy requirements and system efficiencies - Part 4-10: Wind power generation systems, Module M11-8-7",20,"M11",null,null,null,null,null,null,1,1]
[null,4,3,"EN ISO 52003-1:2017","Energy performance of buildings – Indicators, requirements, ratings and certificates – Part 1: General aspects and application to the overall energy performance",36,"M1",1,null,null,null,null,null,null,null,null,1]
[null,5,4,"ISO 17772-1:2017","Energy performance of buildings – Indoor environmental quality – Part 1: Indoor environmental input parameters for the design and assessment of energy performance of buildings",60,"M1",1,null,null,null,null,null,null,null,null,1]
[null,6,4,"EN 16798-1:2019","Energy performance of buildings – Ventilation of buildings – Part 1: Indoor environmental input parameters for design and assessment of energy performance of buildings addressing indoor air quality, thermal environment, lighting and acoustics (Module M1–6)",46,"M1",1,null,null,null,null,null,null,null,null,1]
[null,7,4,"EN ISO 52007-1:20??","Energy performance of buildings — Indoor environmental quality — Part 1: Indoor environmental input parameters for the design and assessment of energy performance of buildings (in preparation)","??","M1",1,null,null,null,null,null,null,null,null,1]
[null,8,5,"EN ISO 52010-1:2017","Energy performance of buildings - External climatic conditions - Part 1: Conversion of climatic data for energy calculations",35,"M1",1,null,null,null,null,null,null,null,null,1]
[null,15,11,"EN ISO 52018-1:2017","Energy performance of buildings — Indicators for partial EPB requirements related to thermal energy balance and fabric features — Part 1: Overview of options",43,"M2",null,1,null,null,null,null,null,null,null,1]
[null,16,12,"EN ISO 13789:2017","Thermal performance of buildings - Transmission and ventilation heat transfer coefficients - Calculation method",24,"M2",null,1,null,null,null,null,null,null,1]
[null,17,13,"EN ISO 13370:2017","Thermal performance of buildings – Heat transfer via the ground – Calculation methods",49,"M2",null,1,null,null,null,null,null,null,1]
[null,18,14,"EN ISO 6946:2017","Building components and building elements – Thermal resistance and thermal transmittance – Calculation method",40,"M2",null,1,null,null,null,null,null,null,1]
[null,19,15,"EN ISO 10211:2017","Thermal bridges in building construction - Heat flows and surface temperatures - Detailed calculations",55,"M2",null,1,null,null,null,null,null,null,1]
[null,20,16,"EN ISO 14683:2017","Thermal bridges in building construction – Linear thermal transmittance – Simplified methods and default values",25,"M2",null,1,null,null,null,null,null,null,1]
[null,21,17,"EN ISO 10077-1:2017","Thermal performance of windows, doors and shutters – Calculation of thermal transmittance – Part 1: General",40,"M2",null,1,null,null,null,null,null,null,1]
[null,22,18,"EN ISO 10077-2:2017","Thermal performance of windows, doors and shutters – Calculation of thermal transmittance – Part 2: Numerical method for frames",70,"M2",null,1,null,null,null,null,null,null,1]
[null,23,19,"EN ISO 12631:2017","Thermal performance of curtain walling – Calculation of thermal transmittance ",47,"M2",null,1,null,null,null,null,null,null,1]
[null,24,20,"EN ISO 13786:2017","Thermal performance of building components – Dynamic thermal characteristics – Calculation methods",19,"M2",null,1,null,null,null,null,null,null,1]
[null,25,21,"EN ISO 52022-3:2017","Energy performance of buildings – Thermal, solar and daylight properties of building components and elements – Part 3: Detailed calculation method of the solar and daylight characteristics for solar protection devices combined with glazing",31,"M2",null,1,null,null,null,null,null,null,1]
[null,26,22,"EN ISO 52022-1:2017","Energy performance of buildings – Thermal, solar and daylight properties of building components and elements – Part 1: Simplified calculation method of the solar and daylight characteristics for solar protection devices combined with glazing",17,"M2",null,1,null,null,null,null,null,null,1]
[null,2,2,"EN 17423:2020","Energy performance of buildings - Determination and reporting of Primary Energy Factors (PEF) and CO2 emission coefficient - General Principles, Module M1-7",48,"M1",1,null,null,null,null,null,null,null,null,null,null,null,1]
[null,3,2,"EN ISO 52000-3:2023","Energy Performance of Buildings – Determination and reporting of Primary Energy factors (PEF) and CO2 emission factors",36,"M1",1,null,null,null,null,null,null,null,null,null,null,null,1]
[null,9,6,"EN 15459-1:2017","Energy performance of buildings – Economic evaluation procedure for energy systems in buildings – Part 1: Calculation procedures, Module M1–14",56,"M1",1,null,null,null,null,null,null,null,null,null,null,1]
[null,10,6,"EN ISO 52011-1:20??","Energy performance of buildings – Economic evaluation procedure for energy systems in buildings – Part 1: Calculation procedures, Module M1–14 (in preparation)","??","M1",1,null,null,null,null,null,null,null,null,null,null,1]
[null,14,10,"EN ISO  52017-1:2017","Energy performance of buildings - Sensible and latent heat loads and internal temperatures  – Part 1: Generic calculation procedures",31,"M2",null,1,null,null,null,null,null,null,null,null,null,null,1]
[null,28,24,"EN 12831-1:2017","Energy performance of buildings – Method for calculation of the design heat load – Part 1: Space heating load, Module M3–3",96,"M3",null,null,1,null,null,null,null,null,null,null,1]
[null,40,34,"EN 15378-3:2017","Energy performance of buildings –Heating and DHW systems in buildings – Part 3: Measured energy performance, Module M3–10 and M8–10",68,"M3, M8",null,null,1,null,null,null,null,null,null,null,null,1]
[null,41,35,"EN 15378-1:2017","Energy performance of buildings – Heating systems and DHW in buildings - Part 1: Inspection of boilers, heating systems and DHW, Module M3–11, M8–11",84,"M3, M8",null,null,1,null,null,null,null,null,null,null,null,1]
[null,45,39,"EN 16798-17:2017","Energy performance of buildings – Ventilation for buildings – Part 17: Guidelines for inspection of ventilation and air conditioning systems (Module M4–11, M5–11, M6–11, M7–11)",42,"M4, M5, M6, M7",null,null,null,1,null,null,null,null,null,null,null,1]
[null,46,40,"EN 16798-3:2017","Energy performance of buildings – Ventilation for buildings – Part 3: For non-residential buildings – Performance requirements for ventilation and room-conditioning systems (Modules M5–1, M5–4)",58,"M5",null,null,null,null,1,null,null,null,null,null,1]
[null,50,44,"EN 12831-3:2017","Energy performance of buildings – Method for calculation of the design heat load – Domestic hot water systems heat load and characterization of needs, Module M8–2, M8–3",98,"M8",null,null,1,null,null,null,null,null,null,null,1]
[null,52,46,"EN 15232-1:2017","Energy performance of buildings – Part 1: Impact of Building Automation, Controls and Building Management – Modules M10–4,5,6,7,8,9,10",109,"M10",null,null,null,null,null,null,1,null,null,null,1]
[null,53,47,"EN ISO 52120-1:2021","Energy performance of buildings – Contribution of Building Automation and Controls and Building Management – Part 1: Modules M10-4,5,6,7,8,9,10",93,"M10",null,null,null,null,null,null,1,null,null,null,1]
[null,54,48,"EN 16946-1:2017","Energy Performance of Buildings – Inspection of Automation, Controls and Technical Building Management – Part 1: Module M10–11",20,"M10",null,null,null,null,null,null,1,null,null,null,null,1]
[null,55,49,"EN 16947-1:2017","Energy Performance of Buildings – Building Management System – Part 1: Module M10–12",24,"M10",null,null,null,null,null,null,1,null,null,null,1]
[null,56,50,"EN ISO 52127-1:2021","Energy performance of buildings - Building Automation, Controls and Building Management - Part 1: Building Management System - Module M10-12",15,"M10",null,null,null,null,null,null,1,null,null,null,1,null,null,null," "]
[null,57,51,"EN 15500-1:2017","Energy Performance of Buildings - Control for heating, ventilating and air conditioning applications - Part 1: Electronic individual zone control equipment - Modules M3-5, M4-5, M5-5",40,"M10, M3, M4, M5",null,null,null,null,null,null,1,null,null,null,1]
[null,58,52,"EN 12098-1:2017","Energy Performance of Buildings - Controls for heating systems - Part 1: Control equipment for hot water heating systems - Modules M3-5, 6, 7, 8",37,"M10, M3, M5, M6, M7, M8",null,null,null,null,null,null,1,null,null,null,1]
[null,59,53,"EN 12098-3:2017","Energy Performance of Buildings - Controls for heating systems - Part 3: Control equipment for electrical heating systems - Modules M3-5,6,7,8",37,"M10, M3, M5, M6, M7, M8",null,null,null,null,null,null,1,null,null,null,1]
[null,60,55,"EN 12098-5:2017","Energy Performance of Buildings - Controls for heating systems - Part 5: Start-stop schedulers for heating systems - Modules M3-5,6,7,8",25,"M10, M3, M5, M6, M7, M8",null,null,null,null,null,null,1,null,null,null,1]
[null,null,null,null,"= END =",{"$f":"SUM(F6:F66)","v":3219},null,{"$f":"SUM(H6:H66)","v":10},{"$f":"SUM(I6:I66)","v":16},16,4,4,1,10,24,11,6,11,6,3]
[null,null,null,null,null,null,null,{"$f":"SUM(H67:N67)","v":61},null,null,null,null,null,null,{"$f":"SUM(O67:T67)","v":61}]
[null,null,null,null,null,"WARNING: incl. \"duplicates\"",null,"WARNING: Numbers include \"duplicates\", e.g. in ISO and CEN.",null,null,null,null,null,null,"WARNING: Numbers include \"duplicates\", e.g. in ISO and CEN."]

{"sheet":"Statistics","index":3,"n_rows":10,"n_cols":19,"rows_kept":10,"cut":false,"hidden":false,"merged":[]}
[]
[]
[null,null,null,null,null,null,"to be completed"]
[]
[]
[null,null,null,null,null,null,{"$f":"+Overview!H2","v":"M1, EPB - Overarching EPB Assessment Procedures"},{"$f":"+Overview!I2","v":"M2, EPB - Building and Building Elements"},{"$f":"+Overview!J2","v":"M3, EPB - Heating Systems and water based cooling systems in buildings & M8 DHW systems"},{"$f":"+Overview!K2","v":"M4, EPB - Cooling Systems"},{"$f":"+Overview!L2","v":"M5, EPB - Ventilation and Ventilation Systems"},{"$f":"+Overview!M2","v":"M9, EPB - Lighting and Lighting Systems"},{"$f":"+Overview!N2","v":"M10, EPB - Building Automation and Control"},{"$f":"+Overview!O2","v":"Interacting EP calculation procedures"},{"$f":"+Overview!P2","v":"Supporting calculation procedures"},{"$f":"+Overview!Q2","v":"EP preprocessing (indoor, outdoor env.) or postprocessing (indic., requirmts, ratings)"},{"$f":"+Overview!R2","v":"Other (System or component design)"},{"$f":"+Overview!S2","v":"Other (inspection, meas.EP, economic calc.)"},{"$f":"+Overview!T2","v":"Other: reference calc., background info"}]
[null,null,null,null,null,null,{"$f":"+Overview!H67","v":10},{"$f":"+Overview!I67","v":16},{"$f":"+Overview!J67","v":16},{"$f":"+Overview!K67","v":4},{"$f":"+Overview!L67","v":4},{"$f":"+Overview!M67","v":1},{"$f":"+Overview!N67","v":10},{"$f":"+Overview!O67","v":24},{"$f":"+Overview!P67","v":11},{"$f":"+Overview!Q67","v":6},{"$f":"+Overview!R67","v":11},{"$f":"+Overview!S67","v":6},{"$f":"+Overview!T67","v":3}]
[]
[]
[null,null,null,null,null,null,null,"TO BE 'COMPLETED'"]